bitfinex-derivatives/quotes_ETHF0:USTF0_20240927
["timestamp","ask_amount","ask_price","bid_price","bid_amount"]
[1727420232699,0.37619,2657.8,2657.7,5.3688676]
[1727420232899,1.08,2657.9,2657.7,6.98883808]
[1727420233105,1.08,2657.9,2657.7,5.3688676]
[1727420233606,0.37619,2657.8,2657.7,3.9815]
[1727420233799,0.37619,2657.8,2657.7,0.7737]
[1727420237907,1.08,2657.9,2657.7,0.7737]
[1727420238208,1.319,2657.8,2657.7,0.7737]
[1727420238406,1.319,2657.8,2657.7,1.7598676]
[1727420238607,1.319,2657.8,2657.7,0.7737]
[1727420239209,1.319,2657.8,2657.7,1.7598676]
[1727420239508,1.319,2657.8,2657.7,0.7737]
[1727420240524,1.69519,2657.8,2657.6,0.9861676]
[1727420240708,1.69519,2657.8,2657.7,0.3777]
[1727420240905,2.77519,2657.8,2657.7,0.3777]
[1727420241308,2.77519,2657.8,2657.7,1.3638676]
[1727420242514,2.399,2657.8,2657.7,0.3777]
[1727420242705,0.37618,2657.9,2657.7,1.3638676]
[1727420242706,2.399,2657.9,2657.7,1.3638676]
[1727420244211,2.399,2657.9,2657.8,0.9861676]
[1727420245714,3.2078,2658.2,2657.8,4.1939676]
[1727420245909,1.45614,2658.2,2657.9,4.08590087]
[1727420246221,1.45614,2658.2,2658.0,1.3555676]
[1727420246412,1.319,2658.3,2658.0,1.3555676]
[1727420246413,1.45615,2658.1,2658.0,1.3555676]
[1727420246612,1.45615,2658.1,2658.0,0.3694]
[1727420248109,1.08,2658.1,2658.0,0.3694]
[1727420248411,1.08,2658.1,2658.0,1.3555676]
[1727420248910,0.4062,2658.4,2658.0,1.7317276]
[1727420248911,0.37611,2658.4,2658.0,1.7317276]
[1727420249113,1.08,2658.3,2658.1,4.5989676]
[1727420250717,1.08,2658.3,2658.1,3.6128]
[1727420251516,1.45612,2658.3,2658.1,3.6128]
[1727420251723,1.45612,2658.3,2658.1,4.5989676]
[1727420253021,1.45612,2658.3,2658.1,3.6128]
[1727420253022,0.37613,2658.2,2658.1,3.6128]
[1727420253222,1.45613,2658.3,2658.1,3.6128]
[1727420254222,0.37613,2658.2,2658.1,3.6128]
[1727420254422,0.37613,2658.2,2658.1,3.2078]
[1727420255620,0.37615,2658.1,2658.0,0.3694]
[1727420255924,0.37615,2658.1,2658.0,1.3555676]
[1727420255925,1.08,2658.1,2658.0,1.3555676]
[1727420258223,1.45615,2658.1,2658.0,1.3555676]
[1727420258623,1.08,2658.1,2658.0,1.3555676]
[1727420260438,1.08,2658.1,2658.0,0.3694]
[1727420260630,1.45615,2658.1,2658.0,0.3694]
[1727420260830,1.08,2658.1,2658.0,1.3555676]
[1727420261940,1.45615,2658.1,2658.0,0.3694]
[1727420262239,4.8424,2658.1,2657.8,0.9861676]
[1727420262440,1.08,2657.9,2657.7,0.9861676]
[1727420262736,1.08,2657.9,2657.8,0.9861676]
[1727420264638,1.08,2657.9,2657.7,1.7379676]
[1727420265033,1.08,2657.9,2657.8,0.9861676]
[1727420265636,1.45618,2657.9,2657.8,0.9861676]
[1727420266641,1.45618,2657.9,2657.7,1.7379676]
[1727420267033,1.45618,2657.9,2657.8,0.9861676]
[1727420267642,1.45618,2657.9,2657.7,1.7379676]
[1727420267840,1.08,2657.8,2657.7,1.7379676]
[1727420268044,1.08,2657.8,2657.7,2.37210089]
[1727420268241,1.08,2657.8,2657.7,1.73847064]
[1727420269144,1.08,2657.8,2657.7,3.3587203]
[1727420269450,1.08,2657.8,2657.7,2.37204966]
[1727420269748,1.08,2657.8,2657.7,3.35864635]
[1727420269932,1.08,2657.9,2657.7,3.85153002]
[1727420270138,1.08,2657.9,2657.8,0.98656619]
[1727420270345,1.45618,2657.9,2657.7,1.73836619]
[1727420273138,1.45618,2657.9,2657.7,4.94616619]
[1727420274248,1.08,2657.9,2657.7,4.94616619]
[1727420274743,1.45618,2657.9,2657.7,4.94616619]
[1727420275144,1.08,2657.9,2657.7,4.94616619]
[1727420275341,1.69113,2658.3,2657.8,4.06598945]
[1727420275543,1.69113,2658.3,2658.0,4.1942583]
[1727420275544,1.08,2658.3,2658.0,4.1942583]
[1727420275742,1.08,2658.3,2658.1,0.7867]
[1727420276043,1.08,2658.3,2658.1,1.1621]
[1727420277442,1.45613,2658.3,2658.1,1.1621]
[1727420278953,1.08,2658.3,2658.1,1.1621]
[1727420279169,1.315,2658.4,2658.1,1.1621]
[1727420279447,1.08,2658.2,2658.1,1.1621]
[1727420281746,1.08,2658.2,2658.0,0.9864583]
[1727420281956,1.08,2658.2,2657.9,1.3608583]
[1727420281957,0.37615,2658.1,2657.9,1.3608583]
[1727420282156,1.08,2658.0,2657.9,1.3608583]
[1727420282454,1.08,2658.0,2657.9,2.98392936]
[1727420282657,1.08,2658.0,2657.9,1.3608583]
[1727420283146,1.45616,2658.0,2657.9,1.3608583]
[1727420283655,1.08,2658.0,2657.9,1.3608583]
[1727420285153,1.45616,2658.0,2657.9,1.3608583]
[1727420285352,1.08,2658.0,2657.9,1.3608583]
[1727420286354,1.08,2658.0,2657.9,0.3744]
[1727420287649,1.08,2658.0,2657.9,1.3608583]
[1727420289252,1.08,2658.0,2657.9,0.3744]
[1727420289452,1.08,2658.0,2657.9,1.3608583]
[1727420290555,0.37618,2657.9,2657.8,0.9864583]
[1727420290753,0.37618,2657.9,2657.7,3.9975]
[1727420290754,0.75448,2657.9,2657.7,4.9839583]
[1727420290955,1.08,2657.8,2657.7,4.9839583]
[1727420292858,1.08,2657.8,2657.7,5.62102812]
[1727420293258,1.08,2657.8,2657.7,7.10050848]
[1727420296062,1.08,2657.8,2657.7,7.10050396]
[1727420298358,1.08,2657.8,2657.7,5.6210236]
[1727420299569,1.08,2657.8,2657.7,7.10122451]
[1727420300166,1.08,2657.8,2657.7,5.6210236]
[1727420300368,1.08,2657.8,2657.7,7.10124966]
[1727420300578,1.08,2657.8,2657.7,5.6210236]
[1727420301073,1.08,2657.8,2657.7,7.10131011]
[1727420301660,1.08,2657.8,2657.7,3.89351011]
[1727420301861,1.08,2657.8,2657.7,7.10131011]
[1727420303167,1.08,2657.8,2657.7,6.60796023]
[1727420303378,1.08,2657.8,2657.7,5.6210236]
[1727420303568,1.08,2657.8,2657.7,3.89351011]
[1727420303968,1.08,2657.8,2657.7,7.10131011]
[1727420304578,1.45619,2657.8,2657.7,4.98442693]
[1727420304870,1.84229,2657.8,2657.7,3.2078]
[1727420305871,2.22479,2657.8,2657.7,3.2078]
[1727420306372,1.4661,2657.8,2657.7,3.2078]
[1727420306976,1.84229,2657.8,2657.7,3.2078]
[1727420307175,1.4661,2657.8,2657.7,3.2078]
[1727420307478,1.08,2657.8,2657.7,3.2078]
[1727420307668,1.45619,2657.8,2657.7,3.2078]
[1727420311371,1.08,2657.8,2657.7,3.2078]
[1727420314385,1.45619,2657.8,2657.7,3.2078]
[1727420314879,1.08,2657.8,2657.7,3.2078]
[1727420315779,1.45619,2657.8,2657.7,3.2078]
[1727420319290,1.08,2657.8,2657.7,3.2078]
[1727420320584,1.45619,2657.8,2657.7,3.2078]
[1727420320785,1.08,2657.8,2657.7,3.2078]
[1727420321187,1.45619,2657.8,2657.7,3.2078]
[1727420321786,1.08,2657.8,2657.7,3.2078]
[1727420322086,1.45619,2657.8,2657.7,3.2078]
[1727420323388,1.08,2657.8,2657.7,3.2078]
[1727420324489,1.45619,2657.8,2657.7,3.2078]
[1727420326390,1.08,2657.8,2657.7,3.2078]
[1727420327291,1.45619,2657.8,2657.7,3.2078]
[1727420328893,1.08,2657.8,2657.7,3.2078]
[1727420330397,1.45619,2657.8,2657.7,3.2078]
[1727420331088,1.306,2657.9,2657.7,4.19472693]
[1727420331285,1.08,2657.8,2657.7,4.19472693]
[1727420331500,1.08,2657.8,2657.7,5.81856957]
[1727420331695,1.08,2657.8,2657.7,4.19472693]
[1727420332198,1.45619,2657.8,2657.7,4.19472693]
[1727420333091,1.83859,2657.8,2657.7,4.19472693]
[1727420333494,1.83859,2657.8,2657.7,3.2078]
[1727420333997,2.6309487,2657.8,2657.7,3.2078]
[1727420334593,0.7923587,2657.8,2657.7,3.2078]
[1727420334907,0.7923587,2657.8,2657.7,5.82510258]
[1727420334908,1.08,2657.8,2657.7,5.82510258]
[1727420335089,1.08,2657.8,2657.0,2.95896073]
[1727420335090,0.94062,2657.4,2657.2,0.98720323]
[1727420335294,0.37631,2657.0,2656.8,0.4078]
[1727420335596,1.08,2656.9,2656.8,0.4078]
[1727420338296,1.4689,2656.9,2656.8,0.4078]
[1727420339295,1.08,2656.9,2656.8,0.4078]
[1727420342212,1.45632,2656.9,2656.8,0.4078]
[1727420342412,1.45632,2656.9,2656.7,3.966]
[1727420342413,0.37633,2656.8,2656.7,3.966]
[1727420342610,2.22692,2656.9,2656.7,3.586]
[1727420342811,0.37633,2656.8,2656.7,3.586]
[1727420343000,2.22692,2656.9,2656.7,3.586]
[1727420343312,0.3702,2656.9,2656.7,3.586]
[1727420343505,1.08,2656.8,2656.7,3.586]
[1727420343906,3.58409,2657.1,2656.7,13.35]
[1727420343907,1.08,2657.1,2656.7,13.35]
[1727420344108,7.3728,2657.9,2657.0,3.2078]
[1727420344410,1.08,2657.2,2657.1,0.75659]
[1727420344609,0.4656,2658.0,2657.1,0.3803]
[1727420344811,1.08,2657.5,2657.4,0.37625]
[1727420345009,1.08,2657.5,2657.4,0.3929]
[1727420345311,1.08,2657.5,2657.4,4.53235]
[1727420345511,1.08,2657.5,2657.4,4.1561]
[1727420346112,1.08,2657.5,2657.4,4.53235]
[1727420346312,2.35,2657.6,2657.4,4.1561]
[1727420346508,2.35,2657.6,2657.4,0.3929]
[1727420346921,2.72623,2657.6,2657.4,0.3929]
[1727420347815,2.35,2657.6,2657.4,0.3929]
[1727420348605,2.72622,2657.6,2657.4,0.3929]
[1727420348916,2.35,2657.6,2657.4,0.3929]
[1727420351617,0.37623,2657.5,2657.4,0.3929]
[1727420353123,2.72622,2657.6,2657.4,0.3929]
[1727420353916,2.35,2657.6,2657.4,0.3929]
[1727420358014,2.35,2657.8,2657.5,3.7632]
[1727420358213,2.35,2657.8,2657.6,3.5809]
[1727420358620,2.35,2657.8,2657.6,7.7195]
[1727420358820,2.35,2657.8,2657.6,3.5809]
[1727420359015,2.35,2657.8,2657.6,0.3731]
[1727420359419,0.3762,2657.7,2657.6,0.3731]
[1727420359617,2.7262,2657.8,2657.6,0.3731]
[1727420360519,2.35,2657.8,2657.6,0.3731]
[1727420362012,2.72619,2657.8,2657.6,0.3731]
[1727420362411,0.3762,2657.7,2657.6,0.3731]
[1727420363321,0.37622,2657.6,2657.5,0.3802]
[1727420363526,2.35,2657.6,2657.5,0.3802]
[1727420364225,2.72622,2657.6,2657.5,0.3802]
[1727420364526,2.35,2657.6,2657.5,0.3802]
[1727420365117,2.72622,2657.6,2657.5,0.3802]
[1727420365717,2.35,2657.6,2657.5,0.3802]
[1727420367021,7.47862035,2658.4,2657.5,0.3802]
[1727420367218,1.6782,2657.8,2657.6,0.3922]
[1727420367427,2.35,2657.7,2657.6,0.3922]
[1727420368131,2.35,2657.7,2657.6,3.6]
[1727420369020,3.652,2657.7,2657.6,3.6]
[1727420371225,3.652,2657.7,2657.6,0.3922]
[1727420372423,2.382,2657.7,2657.6,0.3922]
[1727420373525,1.08,2657.9,2657.8,0.37618]
[1727420373830,1.08,2657.9,2657.8,3.58398]
[1727420374227,1.08,2657.9,2657.8,3.2078]
[1727420374417,2.35,2657.9,2657.6,0.3922]
[1727420374622,2.35,2657.7,2657.6,0.3922]
[1727420374826,2.35,2657.9,2657.8,0.37619]
[1727420375129,2.35,2657.9,2657.8,3.58399]
[1727420376725,2.35,2657.9,2657.8,3.2078]
[1727420377130,2.35,2657.9,2657.8,3.5802]
[1727420378325,2.35,2657.9,2657.8,3.95639]
[1727420378532,2.35,2658.1,2658.0,0.37615]
[1727420379126,2.35,2658.1,2658.0,0.76975]
[1727420381928,2.35,2658.1,2658.0,4.53215]
[1727420385936,2.35,2658.1,2658.0,0.3936]
[1727420386128,2.35,2658.1,2658.0,4.156]
[1727420386837,2.35,2658.1,2658.0,0.3936]
[1727420387139,2.35,2658.1,2658.0,4.156]
[1727420387635,2.35,2658.1,2658.0,0.3936]
[1727420388140,2.35,2658.1,2658.0,4.156]
[1727420388338,2.35,2658.1,2658.0,0.3936]
[1727420390145,2.35,2658.1,2658.0,3.6014]
[1727420396341,1.08,2658.1,2658.0,3.6014]
[1727420397237,1.08,2658.1,2658.0,3.97755]
[1727420399934,1.08,2658.1,2658.0,7.73995]
[1727420401546,1.08,2658.2,2658.1,0.37614]
[1727420402549,0.37608,2658.6,2658.1,0.37614]
[1727420402749,0.37608,2658.6,2658.3,3.2078]
[1727420403048,1.08,2658.4,2658.3,3.2078]
[1727420403852,1.14076,2658.7,2658.3,3.2078]
[1727420404042,1.08,2658.4,2658.3,3.2078]
[1727420404943,3.58385,2658.8,2658.3,6.9694]
[1727420405145,1.08,2658.6,2658.3,3.2078]
[1727420405666,1.08,2658.6,2658.3,3.58391]
[1727420406740,1.08,2658.6,2658.3,3.2078]
[1727420407143,1.08,2658.4,2658.3,3.2078]
[1727420407751,1.08,2658.4,2658.3,6.9694]
[1727420409755,0.4049,2658.7,2658.3,7.34552]
[1727420409961,1.08,2658.6,2658.3,3.2078]
[1727420411856,1.08,2658.6,2658.3,3.58392]
[1727420412058,1.08,2658.6,2658.3,7.34552]
[1727420412958,1.08,2658.6,2658.3,3.58392]
[1727420413163,1.08,2658.7,2658.3,3.58391]
[1727420413460,1.08,2658.7,2658.6,3.2078]
[1727420413653,0.37603,2659.0,2658.6,3.2078]
[1727420413849,1.6841,2659.2,2658.6,3.2078]
[1727420413850,1.33302,2659.1,2658.7,0.7793]
[1727420414063,1.45605,2658.8,2658.7,0.7793]
[1727420414657,0.37606,2658.7,2658.6,3.2078]
[1727420414863,0.76906,2658.7,2658.6,3.2078]
[1727420415365,0.393,2658.7,2658.6,3.2078]
[1727420416058,0.393,2658.7,2658.2,2.25592547]
[1727420416259,1.08,2658.8,2658.6,3.2078]
[1727420416462,1.45605,2658.8,2658.7,0.3716]
[1727420416659,1.45605,2658.8,2658.7,0.7541]
[1727420417459,1.08,2658.8,2658.7,0.7541]
[1727420417660,1.45605,2658.8,2658.7,0.7541]
[1727420417874,1.08,2658.8,2658.7,0.7541]
[1727420418359,1.08,2658.8,2658.7,1.1231]
[1727420420969,0.3735,2659.1,2658.7,1.1231]
[1727420420970,0.3735,2659.1,2658.7,4.3309]
[1727420421358,1.08,2658.9,2658.7,4.3309]
[1727420426061,1.08,2658.9,2658.7,1.1231]
[1727420426372,1.08,2658.9,2658.8,3.2078]
[1727420426572,0.37598,2659.3,2658.8,8.0486]
[1727420426862,0.37598,2659.3,2659.2,3.2078]
[1727420429461,3.5578,2660.1,2659.2,6.9686]
[1727420429664,1.1692,2660.0,2659.7,0.37591]
[1727420429861,0.35,2660.8,2659.9,4.2878]
[1727420430058,1.08,2660.0,2659.8,3.81986596]
[1727420430255,1.4645,2659.9,2659.7,0.7388]
[1727420430464,1.4645,2659.9,2659.7,1.1094]
[1727420430862,0.3845,2659.9,2659.7,1.1094]
[1727420431068,1.08,2660.0,2659.7,1.1094]
[1727420432361,1.1705,2660.1,2659.7,1.1094]
[1727420432362,3.5205,2660.1,2659.7,1.1094]
[1727420432560,2.35,2659.9,2659.7,1.1094]
[1727420435370,2.35,2659.9,2659.7,0.7388]
[1727420435568,0.4017,2659.8,2659.6,3.2078]
[1727420435866,0.4017,2659.8,2659.7,0.3964]
[1727420436067,3.1347,2660.1,2659.7,0.3964]
[1727420436261,3.1347,2660.1,2659.9,3.2078]
[1727420438866,0.37585,2660.3,2659.9,3.2078]
[1727420439363,0.3887,2660.2,2660.0,0.3876]
[1727420442779,0.4043,2660.3,2660.0,0.3876]
[1727420443086,0.78014,2660.3,2660.0,0.3876]
[1727420444884,0.4043,2660.3,2660.0,0.3876]
[1727420445486,0.4043,2660.3,2660.0,0.76348]
[1727420445682,2.72582,2660.4,2660.2,3.2078]
[1727420445887,0.37582,2660.4,2660.3,0.4048]
[1727420446082,2.35,2660.4,2660.3,0.4048]
[1727420446490,6.1092,2660.4,2660.3,0.4048]
[1727420446781,6.48502,2660.4,2660.3,0.4048]
[1727420447292,2.72582,2660.4,2660.3,0.4048]
[1727420447990,2.35,2660.4,2660.3,0.4048]
[1727420448196,0.37581,2660.5,2660.3,0.4048]
[1727420448989,2.72581,2660.6,2660.3,0.78063]
[1727420449176,2.35,2660.6,2660.3,0.78063]
[1727420449382,0.77769,2660.7,2660.3,0.78063]
[1727420450287,0.4019,2660.7,2660.4,0.37582]
[1727420450485,0.4019,2660.7,2660.3,0.78063]
[1727420450486,0.77768,2660.7,2660.3,0.78063]
[1727420451295,0.77768,2660.7,2660.4,3.2078]
[1727420451498,0.3758,2660.6,2660.4,3.2078]
[1727420451702,0.37581,2660.5,2660.4,3.2078]
[1727420452000,2.7258,2660.6,2660.4,3.2078]
[1727420452199,0.37581,2660.5,2660.4,3.2078]
[1727420453087,2.35,2660.6,2660.4,3.2078]
[1727420453292,0.37581,2660.5,2660.4,3.2078]
[1727420453890,2.7258,2660.6,2660.4,3.2078]
[1727420454095,2.35,2660.6,2660.4,3.2078]
[1727420454290,1.08,2660.5,2660.4,3.2078]
[1727420454497,1.45581,2660.5,2660.4,3.2078]
[1727420455893,1.08,2660.6,2660.4,3.2078]
[1727420456297,0.37579,2660.6,2660.4,3.2078]
[1727420456505,1.4732,2660.5,2660.4,3.2078]
[1727420458505,1.08,2660.5,2660.4,3.2078]
[1727420459400,1.08,2660.5,2660.3,0.4048]
[1727420459595,1.08,2660.4,2660.3,3.6126]
[1727420460108,1.4645,2660.4,2660.3,3.6126]
[1727420460501,1.08,2660.4,2660.3,3.6126]
[1727420461098,0.3845,2660.7,2660.3,3.98843]
[1727420461298,1.08,2660.6,2660.3,3.6126]
[1727420461698,1.4558,2660.6,2660.3,3.6126]
[1727420461909,1.08,2660.6,2660.3,3.6126]
[1727420462614,2.366,2660.8,2660.3,3.98843]
[1727420462805,2.366,2660.8,2660.6,3.2078]
[1727420463002,2.366,2660.8,2660.7,1.1656]
[1727420463815,2.74177,2660.8,2660.7,1.1656]
[1727420464111,1.286,2660.8,2660.7,1.1656]
[1727420464301,2.366,2660.8,2660.7,1.1656]
[1727420464509,6.50017,2660.8,2660.7,1.1656]
[1727420465205,6.1244,2660.8,2660.7,1.1656]
[1727420465413,2.366,2660.8,2660.7,1.1656]
[1727420465909,6.50017,2660.8,2660.7,1.1656]
[1727420466207,6.4953,2660.8,2660.7,0.7778]
[1727420466401,6.87107,2660.8,2660.7,0.7778]
[1727420466808,6.4953,2660.8,2660.7,0.7778]
[1727420467004,2.7369,2660.8,2660.7,0.7778]
[1727420467311,6.4953,2660.8,2660.6,3.2078]
[1727420467512,1.08,2660.7,2660.6,3.2078]
[1727420472907,1.08,2660.8,2660.6,3.2078]
[1727420473107,1.08,2660.8,2660.7,0.7737]
[1727420473308,0.3959,2661.0,2660.7,0.7737]
[1727420473309,2.05264,2661.0,2660.7,0.7737]
[1727420473516,1.08,2660.9,2660.7,0.7737]
[1727420473814,0.37574,2661.0,2660.8,0.37]
[1727420474014,0.37574,2661.0,2660.9,3.2078]
[1727420474607,0.37573,2661.1,2660.9,3.2078]
[1727420474804,0.37574,2661.0,2660.9,3.2078]
[1727420475615,0.394,2661.4,2660.9,3.2078]
[1727420475616,0.37573,2661.1,2660.9,3.2078]
[1727420475913,1.45573,2661.1,2660.9,3.2078]
[1727420476213,1.675,2661.4,2661.0,1.45573]
[1727420476214,1.45569,2661.4,2661.0,1.45573]
[1727420476414,0.37569,2661.4,2661.2,3.2078]
[1727420476719,1.45569,2661.4,2661.2,3.2078]
[1727420477411,0.37569,2661.3,2661.2,3.2078]
[1727420478007,1.45569,2661.4,2661.2,3.2078]
[1727420478408,0.37569,2661.4,2661.2,3.2078]
[1727420478717,1.08,2661.3,2661.2,3.2078]
[1727420479114,1.45569,2661.3,2661.2,3.2078]
[1727420482416,0.37569,2661.3,2661.2,3.2078]
[1727420482624,1.45569,2661.3,2661.1,1.1498]
[1727420482822,0.9391,2661.7,2661.2,6.9654]
[1727420483118,0.37569,2661.3,2661.2,3.2078]
[1727420483316,1.45569,2661.3,2661.2,3.2078]
[1727420483715,10.8376,2661.3,2660.6,0.97955291]
[1727420484021,1.08,2660.7,2660.6,3.2078]
[1727420484518,1.08,2661.1,2660.6,3.2078]
[1727420484821,0.37576,2660.9,2660.6,3.2078]
[1727420485122,0.37574,2661.0,2660.6,3.2078]
[1727420485820,1.45573,2661.1,2660.6,3.2078]
[1727420486121,1.45573,2661.1,2660.6,4.2878]
[1727420486324,0.37575,2661.0,2660.6,4.2878]
[1727420486619,0.37575,2660.9,2660.6,4.2878]
[1727420487120,0.37574,2661.0,2660.6,4.2878]
[1727420488121,0.37574,2661.0,2660.6,5.26735291]
[1727420489326,0.37574,2661.0,2660.7,0.3777]
[1727420489512,0.37574,2661.0,2660.8,0.7608]
[1727420490518,0.37569,2661.3,2660.9,3.2078]
[1727420490722,1.45569,2661.3,2660.9,3.2078]
[1727420490924,0.37569,2661.4,2661.0,0.3777]
[1727420491124,1.281,2661.5,2661.2,3.2078]
[1727420491315,0.37567,2661.5,2661.3,0.7714]
[1727420491521,0.37568,2661.4,2661.3,0.7714]
[1727420491927,0.37569,2661.3,2661.2,3.2078]
[1727420492122,1.82929,2661.3,2661.2,3.2078]
[1727420492327,1.4536,2661.3,2661.0,0.4015]
[1727420492824,1.45572,2661.1,2661.0,0.4015]
[1727420493423,0.3757,2661.3,2661.0,0.4015]
[1727420493722,1.08,2661.5,2661.1,3.2078]
[1727420493723,1.4536,2661.5,2661.1,3.2078]
[1727420493919,0.37571,2661.2,2661.1,3.2078]
[1727420494322,0.74931,2661.2,2661.1,3.2078]
[1727420496933,1.13501,2661.2,2661.1,3.2078]
[1727420497330,1.13501,2661.2,2660.9,0.3699]
[1727420497331,0.37573,2661.1,2660.9,0.3699]
[1727420497636,1.08,2661.3,2661.0,3.2078]
[1727420497637,0.3757,2661.3,2661.0,3.2078]
[1727420497829,0.3757,2661.3,2661.1,0.406]
[1727420498427,0.7817,2661.6,2661.2,3.7576]
[1727420498428,0.396,2661.6,2661.2,3.7576]
[1727420498725,0.396,2661.6,2661.3,3.6088]
[1727420498726,0.37566,2661.6,2661.3,3.6088]
[1727420500233,0.37566,2661.6,2661.3,3.98449]
[1727420500425,0.37564,2661.7,2661.3,3.98449]
[1727420501536,0.37564,2661.7,2661.3,3.6088]
[1727420502331,1.4759,2661.8,2661.3,3.6088]
[1727420502532,0.37565,2661.7,2661.3,3.6088]
[1727420503132,0.37563,2661.8,2661.6,3.2078]
[1727420503332,0.37563,2661.8,2661.7,0.7515]
[1727420503534,1.45563,2661.8,2661.7,0.7515]
[1727420504642,1.45563,2661.8,2661.6,3.2078]
[1727420504643,0.37564,2661.7,2661.6,3.2078]
[1727420508445,0.37562,2661.9,2661.6,3.2078]
[1727420508635,1.08,2661.9,2661.7,0.7746]
[1727420509434,1.08,2661.8,2661.7,0.7746]
[1727420510043,1.45562,2661.8,2661.7,0.7746]
[1727420510548,1.08,2661.8,2661.7,0.7746]
[1727420510840,1.45562,2661.8,2661.7,0.7746]
[1727420511236,1.08,2661.8,2661.7,0.7746]
[1727420511436,1.08,2661.8,2661.7,1.1624]
[1727420511838,1.45562,2661.8,2661.7,1.1624]
[1727420512750,0.37562,2661.8,2661.7,1.1624]
[1727420516140,1.08,2661.9,2661.7,1.1624]
[1727420517941,1.45562,2661.9,2661.7,1.1624]
[1727420518142,1.276,2662.1,2661.7,1.1624]
[1727420518143,1.45562,2661.8,2661.7,1.1624]
[1727420518347,1.08,2661.8,2661.7,1.1624]
[1727420519346,1.08,2661.9,2661.7,1.1624]
[1727420519846,1.45558,2662.1,2661.7,1.53803]
[1727420520049,0.3756,2662.0,2661.9,3.2078]
[1727420520242,1.4556,2662.0,2661.9,3.2078]
[1727420520644,1.286,2662.2,2661.9,3.2078]
[1727420520645,0.37559,2662.1,2661.9,3.2078]
[1727420520947,0.3756,2662.0,2661.9,3.2078]
[1727420521147,0.01,2662.2,2661.9,8.0446]
[1727420521341,0.38557,2662.2,2661.9,8.0446]
[1727420521545,0.01,2662.2,2661.9,7.34021]
[1727420521743,0.01,2662.2,2661.9,8.31976291]
[1727420521953,0.01,2662.2,2661.9,9.39976291]
[1727420522143,0.01,2662.2,2662.1,0.37558]
[1727420522343,0.37553,2662.5,2662.1,1.4516]
[1727420522548,0.37553,2662.5,2662.3,3.2078]
[1727420523248,1.08,2662.6,2662.3,3.2078]
[1727420523249,1.45552,2662.6,2662.3,3.2078]
[1727420523645,0.37553,2662.5,2662.3,3.2078]
[1727420523945,1.08,2662.4,2662.3,3.2078]
[1727420524144,1.45554,2662.4,2662.3,3.2078]
[1727420525051,1.08,2662.4,2662.3,3.2078]
[1727420525240,1.45554,2662.4,2662.3,3.2078]
[1727420528950,1.45554,2662.4,2662.2,0.3742]
[1727420529648,0.37555,2662.3,2662.2,0.3742]
[1727420529845,1.45555,2662.4,2662.2,0.3742]
[1727420530548,0.37555,2662.3,2662.2,0.3742]
[1727420530742,1.45555,2662.3,2662.2,0.3742]
[1727420531047,2.20585,2662.3,2662.2,0.3742]
[1727420531455,1.82975,2662.3,2662.2,0.7799]
[1727420531649,1.08,2662.3,2662.2,0.7799]
[1727420531847,1.45555,2662.3,2662.2,0.7799]
[1727420532350,1.08,2662.3,2662.2,0.7799]
[1727420533049,1.45555,2662.3,2662.2,0.7799]
[1727420533448,1.45555,2662.3,2662.2,0.4057]
[1727420533648,1.45555,2662.3,2662.1,0.3716]
[1727420533649,0.37557,2662.2,2662.1,0.3716]
[1727420535054,1.08,2662.3,2662.1,0.3716]
[1727420535055,1.45556,2662.3,2662.1,0.3716]
[1727420535553,0.37555,2662.4,2662.2,0.3873]
[1727420535748,1.08,2662.3,2662.2,0.7657]
[1727420536144,1.08,2662.5,2662.2,4.5217]
[1727420536455,1.45553,2662.5,2662.2,0.7657]
[1727420536653,1.08,2662.5,2662.2,0.7657]
[1727420537363,1.08,2662.5,2662.4,3.2078]
[1727420537549,1.08,2662.5,2662.2,0.7657]
[1727420537550,0.37552,2662.6,2662.2,0.7657]
[1727420537751,1.08,2662.6,2662.2,0.7657]
[1727420538053,1.08,2662.6,2662.4,3.2078]
[1727420538253,1.45551,2662.6,2662.5,0.397]
[1727420538553,0.7692,2662.7,2662.5,0.397]
[1727420538554,1.08,2662.7,2662.5,0.397]
[1727420538947,0.37544,2663.2,2662.6,5.6036]
[1727420539158,1.08,2663.2,2663.0,3.2078]
[1727420539454,1.08,2663.3,2663.1,0.7898]
[1727420539654,1.08,2663.3,2663.2,0.3908]
[1727420540449,2.71541,2663.4,2663.2,0.3908]
[1727420541148,2.34,2663.4,2663.1,0.7898]
[1727420541350,2.21042,2663.7,2663.0,3.2078]
[1727420541351,2.34,2663.2,2663.0,3.2078]
[1727420541545,0.3754,2663.4,2663.0,3.2078]
[1727420541756,2.34,2663.3,2663.1,0.787]
[1727420542659,0.3754,2663.4,2663.1,0.787]
[1727420543163,2.71542,2663.3,2663.1,0.787]
[1727420543347,2.71543,2663.3,2663.1,0.787]
[1727420544154,2.34,2663.3,2663.1,0.787]
[1727420544868,2.71541,2663.3,2663.1,0.787]
[1727420545053,0.37543,2663.2,2663.1,0.787]
[1727420545253,0.37543,2663.2,2663.0,3.2078]
[1727420545563,2.71544,2663.1,2662.9,0.3977]